bitfinex/quotes_ETHUSD_20260310
["timestamp","ask_amount","ask_price","bid_price","bid_amount"]
[1773118921568,1.71503036,2050.4,2049.3,1.69692321]
[1773118922568,0.49845608,2050.3,2049.3,1.69692321]
[1773118922769,0.49845608,2050.3,2049.4,0.47702457]
[1773118922770,1.21939322,2050.2,2049.4,0.47702457]
[1773118923176,0.49845608,2050.1,2049.1,1.69702649]
[1773118924292,0.49845608,2050.1,2049.2,0.49617194]
[1773118924700,1.21951219,2050.0,2049.3,1.21992875]
[1773118924870,1.21951219,2050.0,2049.3,1.71610069]
[1773118925075,1.21951219,2050.0,2049.3,0.49617194]
[1773118925283,0.47987607,2049.9,2049.0,1.22009487]
[1773118925483,0.47987607,2049.9,2048.9,0.001]
[1773118925705,0.47987607,2049.9,2048.9,1.7173341]
[1773118926009,0.47987607,2049.8,2048.9,0.001]
[1773118926303,0.47987607,2049.8,2048.9,1.22116523]
[1773118926604,0.47987607,2049.8,2048.9,0.001]
[1773118926774,1.21969068,2049.7,2048.9,0.49717194]
[1773118926969,5.35803008,2050.0,2049.0,3.34214922]
[1773118927176,5.35803008,2050.0,2049.1,0.49617194]
[1773118927376,4.87815401,2050.0,2049.1,0.49617194]
[1773118927598,1.69926929,2050.2,2049.1,0.49617194]
[1773118927905,1.21939322,2050.2,2049.4,0.49617194]
[1773118928290,1.69926929,2050.2,2049.1,0.49617194]
[1773118929374,1.69926929,2050.2,2049.2,1.71616022]
[1773118929598,1.69926929,2050.2,2049.3,0.49617194]
[1773118930291,0.47987607,2050.0,2049.1,1.22001539]
[1773118930492,0.47987607,2050.0,2049.0,5.04897276]
[1773118930832,0.47987607,2050.0,2049.0,0.49617194]
[1773118931130,0.47987607,2049.8,2048.9,0.001]
[1773118931426,1.69956675,2049.7,2049.3,0.001]
[1773118932235,3.39478237,2049.6,2049.0,0.001]
[1773118932442,2.9149063,2049.6,2049.0,0.001]
[1773118932580,2.69167722,2049.8,2049.0,0.001]
[1773118932777,2.91436781,2049.7,2049.0,0.001]
[1773118933181,2.91436781,2049.7,2049.0,0.49717194]
[1773118933488,0.48187607,2050.2,2049.2,0.49617194]
[1773118933673,1.2213985,2050.2,2049.5,0.49617194]
[1773118933881,0.002,2050.2,2049.5,0.49617194]
[1773118934083,0.002,2050.2,2049.7,3.82891146]
[1773118934608,1.22139547,2050.2,2049.3,0.49617194]
[1773118935379,0.002,2050.2,2049.4,1.21986923]
[1773118935575,0.002,2050.2,2049.3,0.49617194]
[1773118935819,0.47987607,2050.1,2049.0,1.22110725]
[1773118936108,0.47987607,2050.0,2049.0,1.22110725]
[1773118937086,0.47987607,2050.0,2049.0,1.71727919]
[1773118937511,1.21957168,2049.9,2049.0,1.71727919]
[1773118937821,1.21957168,2049.9,2049.0,1.71726504]
[1773118938024,1.21957168,2049.9,2049.0,0.49717194]
[1773118938328,1.69944775,2049.9,2049.0,0.001]
[1773118938500,0.47987607,2049.7,2049.0,1.22107212]
[1773118938701,2.56176683,2049.8,2049.0,1.22107212]
[1773118939005,2.56176683,2049.8,2049.0,0.001]
[1773118939696,1.21969068,2049.7,2049.0,0.001]
[1773118940033,0.47987607,2049.6,2049.0,0.001]
[1773118940539,1.21969068,2049.7,2049.0,0.001]
[1773118941038,1.21969068,2049.7,2049.0,0.49717194]
[1773118941249,4.360997,2049.9,2049.0,0.49717194]
[1773118941407,1.21955834,2050.0,2049.2,3.83092356]
[1773118941741,4.87796717,2050.1,2049.4,1.21986923]
[1773118942507,0.47987607,2049.9,2049.0,1.71723397]
[1773118943237,0.47987607,2049.9,2049.0,0.49717194]
[1773118943408,0.47987607,2049.9,2049.0,0.001]
[1773118943602,0.47987607,2049.9,2049.0,1.2211033]
[1773118943804,0.47987607,2049.7,2049.0,0.001]
[1773118944838,0.47987607,2049.6,2049.0,0.001]
[1773118945037,0.47987607,2049.5,2049.0,0.001]
[1773118945341,0.47987607,2049.4,2049.0,0.001]
[1773118945544,0.47987607,2049.4,2049.2,0.001]
[1773118945729,1.21992875,2049.3,2049.2,0.001]
[1773118946106,1.69980482,2049.3,2048.9,0.001]
[1773118947339,0.47987607,2049.2,2048.9,0.001]
[1773118948043,1.22004782,2049.1,2048.9,0.001]
[1773118948941,0.47987607,2049.0,2048.9,0.001]
[1773118949244,1.22004782,2049.1,2048.9,0.001]
[1773118949614,4.8801913,2049.2,2048.9,0.001]
[1773118949615,1.22003137,2049.2,2048.9,0.001]
[1773118951425,1.95887607,2049.3,2048.9,0.001]
[1773118951742,2.567386,2049.2,2048.9,0.001]
[1773118952345,1.22004782,2049.1,2048.9,0.001]
[1773118953735,1.95887607,2049.3,2048.9,0.001]
[1773118953736,0.48675895,2049.8,2048.9,0.46433761]
[1773118953921,1.48,2049.6,2048.9,0.46433761]
[1773118954126,2.56670418,2049.5,2048.9,0.46433761]
[1773118954831,7.32010835,2049.4,2048.9,0.001]
[1773118955018,7.8068673,2049.4,2048.9,0.001]
[1773118956070,7.32010835,2049.4,2048.9,0.001]
[1773118956359,7.32010835,2049.4,2048.7,0.001]
[1773118956360,0.48675895,2049.2,2048.7,0.001]
[1773118956653,1.96675895,2049.2,2048.7,0.001]
[1773118956861,1.22004782,2049.1,2048.7,0.001]
[1773118958250,0.48675895,2048.9,2048.4,0.001]
[1773118958423,0.48675895,2048.9,2048.0,1.22067419]
[1773118958620,0.48675895,2048.7,2047.8,1.22082234]
[1773118958841,0.48675895,2048.7,2047.7,5.34667525]
[1773118958842,1.22046475,2048.4,2047.7,0.46333761]
[1773118959094,7.32063164,2048.6,2047.7,0.46333761]
[1773118959231,8.80063164,2048.6,2047.7,0.46333761]
[1773118960330,6.10023912,2048.6,2048.0,0.46333761]
[1773118960838,7.32058488,2048.6,2047.7,0.46333761]
[1773118961032,7.32058488,2048.6,2047.7,1.68421957]
[1773118961633,7.80734383,2048.6,2047.8,0.46333761]
[1773118961835,0.48675895,2048.5,2047.7,1.22088196]
[1773118962354,7.32058488,2048.6,2047.8,0.46333761]
[1773118962554,6.10023912,2048.4,2047.8,0.46333761]
[1773118962723,6.10023912,2048.4,2047.7,1.22088196]
[1773118962951,6.10023912,2048.4,2047.7,1.68421957]
[1773118963174,7.3207043,2048.4,2047.7,1.68421957]
[1773118963373,6.10023912,2048.4,2047.7,1.68421957]
[1773118963568,7.3207048,2048.4,2047.7,1.68421957]
[1773118964170,7.80746375,2048.4,2047.4,1.68439846]
[1773118964370,0.48675895,2048.3,2047.4,1.68439846]
[1773118964966,1.22058392,2048.2,2047.4,1.68439846]
[1773118965164,7.32082304,2048.2,2047.5,0.46333761]
[1773118965761,6.10023912,2048.1,2047.5,0.46333761]
[1773118965966,6.10023912,2048.1,2047.4,1.22106085]
[1773118965967,6.58699807,2048.1,2047.4,1.22106085]
[1773118966492,6.58699807,2048.1,2047.3,1.22107797]
[1773118966694,6.58699807,2048.1,2047.3,1.68441558]
[1773118967159,1.22070312,2048.0,2047.3,1.68441558]
[1773118967362,7.80768417,2048.1,2047.3,1.68441558]
[1773118967854,6.10023912,2048.1,2047.6,0.46333761]
[1773118969091,6.10023912,2048.1,2047.7,1.22088196]
[1773118969787,3.19408082,2048.7,2047.8,0.46333761]
[1773118970160,1.70708082,2048.7,2047.8,0.46333761]
[1773118970483,3.19408082,2048.7,2047.8,0.46333761]
[1773118970788,5.90023912,2048.6,2047.7,1.22088196]
[1773118970995,0.46941469,2048.5,2047.7,1.22088196]
[1773118971287,0.46941469,2048.4,2047.6,4.88352786]
[1773118971484,0.46941469,2048.4,2047.6,1.22094159]
[1773118972760,0.46941469,2048.4,2047.6,1.69456266]
[1773118972990,5.90023912,2048.3,2047.6,1.69456266]
[1773118973185,1.69001165,2048.2,2047.5,4.88489921]
[1773118973486,5.90023912,2048.2,2047.6,0.47362107]
[1773118974296,5.90023912,2048.1,2047.5,4.88489921]
[1773118974509,5.90023912,2048.2,2047.5,4.88489921]
[1773118974792,6.36965381,2048.2,2047.5,1.22200122]
[1773118975190,1.22064352,2048.1,2047.5,0.001]
[1773118975360,7.59024376,2048.2,2047.5,0.001]
[1773118975564,5.90023912,2048.1,2047.5,0.001]
[1773118977311,5.90023912,2048.0,2047.7,0.47362107]
[1773118977459,5.90023912,2048.4,2047.8,0.47362107]
[1773118977665,0.46941469,2048.7,2047.8,0.47362107]
[1773118977872,5.90023912,2048.6,2048.0,3.80837269]
[1773118978198,1.69156666,2049.0,2048.1,0.47362107]
[1773118978199,5.90023912,2048.8,2048.1,0.47362107]
[1773118979300,5.90023912,2048.7,2048.2,1.22058392]
[1773118979503,5.90023912,2048.9,2048.2,1.22058392]
[1773118979672,5.90023912,2048.9,2048.2,1.69420499]
[1773118979867,5.90023912,2048.9,2048.3,0.47362107]
[1773118980284,7.1204063,2048.9,2048.0,3.80837269]
[1773118980485,0.46941469,2048.8,2047.7,0.47362107]
[1773118980693,5.90023912,2048.9,2048.0,0.47362107]
[1773118981096,5.90023912,2048.9,2048.2,0.47362107]
[1773118981659,5.90023912,2048.9,2048.4,0.47362107]
[1773118981776,5.90023912,2048.9,2048.3,1.22052433]
[1773118982092,0.46941469,2048.8,2048.2,1.22055016]
[1773118982498,5.90023912,2048.7,2048.2,1.22055016]
[1773118983276,5.90023912,2048.7,2047.9,1.6943838]
[1773118983604,5.90023912,2048.6,2047.9,1.6943838]
[1773118984884,5.90023912,2048.6,2048.0,0.45576613]
[1773118985615,5.90023912,2048.6,2048.1,1.22064352]
[1773118986237,7.12059279,2048.6,2047.8,8.67360967]
[1773118986529,7.12059279,2048.6,2047.6,1.67670772]
[1773118986530,0.47086714,2048.5,2047.6,1.67670772]
[1773118987197,0.47086714,2048.5,2047.7,0.45576613]
[1773118987715,0.47086714,2048.4,2047.6,1.22094159]
[1773118988011,0.47086714,2048.3,2047.6,1.67670772]
[1773118988216,0.47086714,2048.3,2047.5,1.2219824]
[1773118988383,1.22041448,2048.5,2047.5,1.67774853]
[1773118988384,0.47086714,2048.2,2047.5,1.67774853]
[1773118988590,5.90023912,2048.3,2047.6,0.45576613]
[1773118988982,6.37110626,2048.3,2047.6,0.45576613]
[1773118989484,5.90023912,2048.2,2047.6,0.45576613]
[1773118989922,5.90023912,2048.1,2047.7,1.22088196]
[1773118993019,6.37110626,2048.1,2047.5,1.22196425]
[1773118993190,0.47086714,2048.0,2047.5,0.001]
[1773118993393,0.47086714,2048.0,2047.5,1.22198781]
[1773118993918,5.90023912,2047.9,2047.5,1.2220006]
[1773118994101,5.90023912,2048.1,2047.5,0.001]
[1773118994302,5.90023912,2048.1,2047.5,0.45676613]
[1773118994502,6.37110626,2048.1,2047.5,0.001]
[1773118994821,0.47086714,2048.0,2047.5,0.001]
[1773118995524,5.90023912,2048.1,2047.5,0.001]
[1773118995821,5.70023912,2047.9,2047.6,0.45576613]
[1773118996024,5.70023912,2048.2,2047.7,1.22088196]
[1773118996222,5.70023912,2048.2,2047.7,1.67664809]
[1773118996596,0.47086714,2048.5,2047.8,3.79051775]
[1773118997220,1.69315411,2048.7,2047.8,3.79051775]
[1773118997594,1.69315411,2048.7,2047.9,0.45576613]
[1773118997905,0.47286714,2048.7,2047.9,0.45576613]
[1773118998241,0.47286714,2048.7,2048.0,1.22170312]
[1773118998242,0.47086714,2048.6,2048.0,1.22170312]
[1773118999324,0.002,2048.7,2048.1,0.45576613]
[1773118999631,1.96186714,2048.9,2048.3,3.7917672]
[1773118999632,0.002,2048.9,2048.3,3.7917672]
[1773118999937,0.002,2048.9,2048.3,0.45576613]
[1773119000346,0.002,2048.9,2048.4,1.22046475]
[1773119000543,0.47286714,2048.9,2048.3,1.22047483]
[1773119000743,0.47286714,2048.9,2048.0,1.22165949]
[1773119000945,0.47086714,2048.7,2048.0,0.001]
[1773119001739,0.47086714,2048.7,2048.0,1.2216763]
[1773119002338,0.47086714,2048.5,2048.0,0.001]
[1773119004624,1.69133189,2048.4,2048.0,0.001]
[1773119005047,0.47086714,2048.4,2048.0,0.001]
[1773119006752,1.6913366,2048.4,2048.0,0.001]
[1773119007054,1.69133905,2048.4,2048.0,0.001]
[1773119007670,0.47086714,2048.4,2048.0,0.001]
[1773119009947,0.47086714,2048.6,2048.0,0.001]
[1773119010955,0.002,2048.5,2048.0,0.001]
[1773119011460,0.47286714,2048.5,2048.0,0.001]
[1773119012861,0.002,2048.5,2048.1,0.45576613]
[1773119013160,0.002,2048.7,2048.2,1.67635005]
[1773119013459,0.002,2048.7,2048.3,0.45576613]
[1773119013863,0.002,2048.7,2048.3,3.7917672]
[1773119014081,0.002,2048.7,2048.4,0.46745209]
[1773119015452,0.002,2048.7,2048.2,5.34961094]
[1773119016227,0.002,2048.7,2048.3,0.46745209]
[1773119016667,0.002,2048.9,2048.3,0.46745209]
[1773119017238,0.002,2048.9,2048.4,1.22046475]
[1773119017447,0.49846118,2048.9,2048.4,1.22046475]
[1773119021338,0.49646118,2048.9,2048.1,1.68803601]
[1773119021569,1.71594497,2050.1,2048.9,0.46745209]
[1773119021740,0.49646118,2050.0,2049.0,0.46745209]
[1773119022183,0.49646118,2049.8,2048.7,0.46745209]
[1773119023570,1.21948379,2050.1,2048.9,0.46745209]
[1773119023571,1.71598453,2050.0,2048.9,0.46745209]
[1773119023740,0.49646118,2049.9,2048.9,0.46745209]
[1773119024753,0.002,2049.2,2049.0,0.46745209]
[1773119025463,0.49646118,2049.9,2049.0,0.46745209]
[1773119025744,0.49646118,2049.9,2049.1,1.68749991]
[1773119025745,1.7160336,2049.9,2049.1,1.68749991]
[1773119025965,0.49646118,2049.9,2049.1,1.68749991]
[1773119026166,0.49646118,2050.1,2049.2,0.46745209]
[1773119027761,1.21951219,2050.0,2049.3,1.21992875]
[1773119027957,0.49646118,2050.1,2049.3,1.68738084]
[1773119028269,1.71593207,2050.1,2049.3,1.68738084]
[1773119028866,1.71593207,2050.1,2049.4,0.46745209]
[1773119029070,3.33600107,2050.8,2049.8,0.46745209]
[1773119029071,0.49646118,2050.6,2049.8,0.46745209]
[1773119029969,0.49646118,2050.4,2049.5,1.68726179]
[1773119030337,0.49646118,2050.4,2049.6,0.46745209]
[1773119031678,1.71565573,2050.6,2049.7,0.46745209]
[1773119031863,1.71565573,2050.6,2049.8,1.68708327]
[1773119032362,0.49646118,2050.6,2049.8,1.68708327]
[1773119032567,1.71563018,2050.6,2049.8,1.68708327]
[1773119032849,5.37136606,2051.4,2050.4,0.46745209]
[1773119033049,0.49646118,2051.7,2050.4,0.46745209]
[1773119034155,0.48979522,2051.5,2050.6,0.49642666]
[1773119035368,0.48979522,2051.3,2050.3,0.49642666]
[1773119035572,0.48979522,2051.3,2050.4,0.49642666]
[1773119035749,1.70835634,2051.6,2050.4,0.49642666]
[1773119035954,0.48979522,2051.5,2050.4,0.49642666]
[1773119036148,1.70847514,2051.4,2050.5,1.21921482]
[1773119036354,1.70847514,2051.4,2050.5,1.71564148]
[1773119036784,1.70847514,2051.4,2050.5,0.49642666]
[1773119036978,0.49179522,2051.3,2050.3,1.71573295]
[1773119038050,0.49179522,2051.3,2050.3,0.49642666]
[1773119038251,0.48979522,2050.9,2049.7,1.71608167]
[1773119038475,0.48979522,2050.9,2049.8,0.49642666]
[1773119039878,2.7049176,2051.0,2049.7,1.21967029]
[1773119039879,1.2189176,2051.0,2049.7,1.21967029]
[1773119040185,0.48979522,2050.9,2049.9,0.49642666]
[1773119040392,0.48979522,2050.7,2049.9,0.49642666]
[1773119040790,0.48979522,2050.6,2049.6,1.71617609]
[1773119041290,0.48979522,2050.5,2049.4,1.22085932]
[1773119041587,0.48979522,2050.5,2049.5,0.49642666]
[1773119042261,0.48979522,2050.5,2049.5,0.26974666]
[1773119043171,0.48979522,2050.3,2049.5,0.26974666]
[1773119043483,0.48979522,2050.3,2049.4,0.001]
[1773119045260,0.46618646,2050.1,2049.4,0.001]
[1773119046993,0.46618646,2050.1,2049.4,0.46505954]
[1773119048493,1.21951219,2050.0,2049.4,1.68487365]
[1773119048799,1.21951219,2050.0,2049.4,0.46505954]
[1773119049381,1.21951219,2050.0,2049.4,1.68492656]
[1773119049980,1.21951219,2050.0,2049.6,0.001]
[1773119050189,1.68566395,2050.1,2049.6,0.001]
[1773119050763,1.21947749,2050.1,2049.6,0.001]
[1773119051294,1.21942545,2050.2,2049.6,0.001]
[1773119051500,1.68756582,2050.3,2049.6,0.001]
[1773119051796,0.46618646,2050.2,2049.6,0.001]
[1773119053066,1.68562762,2050.2,2049.6,0.46505954]
[1773119054606,0.002,2050.3,2049.6,0.46505954]
[1773119054774,1.22134148,2050.3,2049.6,0.46505954]
[1773119055202,0.002,2050.3,2049.7,1.68375022]
[1773119055407,0.002,2050.3,2049.8,0.46405954]
[1773119057780,0.002,2050.3,2049.9,1.21957168]
[1773119057976,0.002,2050.3,2049.9,1.68363122]
[1773119058976,0.002,2050.3,2050.0,0.46405954]
[1773119059421,0.002,2050.5,2050.0,0.46405954]
[1773119059981,0.002,2050.5,2050.1,0.46405954]
[1773119060506,0.002,2050.5,2050.0,1.21948344]
[1773119060707,0.46818646,2050.5,2049.7,1.68371828]
[1773119060906,0.46818646,2050.5,2049.7,0.46405954]
[1773119061275,0.46818646,2050.5,2049.8,0.04878524]
[1773119061477,0.46818646,2050.5,2049.6,1.22070678]
[1773119062009,0.46618646,2050.3,2049.6,0.001]
[1773119062908,0.46618646,2050.3,2049.6,1.22073695]
[1773119063110,1.94318646,2050.3,2049.6,0.001]
[1773119063283,0.46618646,2050.3,2049.6,0.001]
[1773119063612,0.46618646,2050.2,2049.7,0.001]
[1773119064111,1.2194527,2050.1,2049.7,0.001]
[1773119064802,0.46618646,2050.0,2049.7,0.001]
[1773119065891,0.46618646,2050.0,2049.5,0.001]
[1773119066095,0.46618646,2049.8,2049.1,0.46505954]
[1773119066306,1.21957168,2049.9,2049.1,0.46505954]
[1773119068215,0.46618646,2049.9,2049.2,0.46405954]
[1773119068715,0.46618646,2049.9,2049.1,0.001]
[1773119069917,0.46618646,2049.9,2049.1,1.68510088]
[1773119070099,1.21963118,2049.8,2049.2,0.46405954]
[1773119070499,1.21957452,2049.9,2049.2,0.46405954]
[1773119072107,4.87807202,2050.0,2049.3,1.21992875]
[1773119072313,4.87807202,2050.0,2049.3,1.68398829]
[1773119075924,1.71736707,2050.0,2049.3,1.68398829]
[1773119077234,1.71736707,2050.0,2049.4,0.001]
[1773119077434,0.002,2049.8,2049.4,0.001]
[1773119078241,0.002,2049.8,2049.1,0.48159075]
[1773119078242,0.49985488,2049.8,2049.1,0.48159075]
[1773119078433,0.49985488,2049.8,2049.1,0.001]
[1773119079212,0.49985488,2049.8,2049.1,1.22104503]
[1773119079441,0.49985488,2049.8,2049.1,0.001]
[1773119080036,0.49985488,2049.8,2049.1,1.22104431]
[1773119080404,1.71754556,2049.7,2049.1,0.001]
[1773119081010,1.71754556,2049.7,2049.1,0.48159075]
[1773119081520,0.002,2049.8,2049.1,0.48159075]
[1773119082128,1.22163649,2049.8,2049.1,0.48159075]
[1773119083013,0.002,2049.8,2049.2,1.70057903]
[1773119084032,0.49985488,2049.8,2049.2,1.70057903]
[1773119084558,0.49985488,2049.8,2049.1,1.22100222]
[1773119085542,0.49985488,2049.8,2049.1,0.001]
[1773119085543,0.49785488,2049.6,2049.1,0.001]
[1773119085726,0.49785488,2049.6,2049.1,1.22103103]
[1773119085928,0.49785488,2049.7,2049.1,1.22103103]
[1773119086123,0.002,2049.8,2049.2,0.48059075]
[1773119086345,1.22165915,2049.8,2049.2,0.48059075]
[1773119087633,1.22165915,2049.8,2049.3,1.21992875]
[1773119088138,1.71951403,2049.8,2049.2,1.70054036]
[1773119088346,0.49785488,2049.7,2049.2,1.70054036]
[1773119089021,1.22165915,2049.8,2049.2,1.70054036]
[1773119089422,1.22165915,2049.8,2049.4,0.001]
[1773119089617,0.002,2049.7,2049.4,0.001]
[1773119090135,0.002,2049.7,2049.4,0.48159075]
[1773119091622,0.002,2049.7,2049.4,1.70142027]
[1773119095826,0.002,2049.7,2049.4,1.22082952]
[1773119098626,0.002,2049.7,2049.4,0.001]
[1773119099060,0.002,2049.7,2049.4,0.48382132]
[1773119099361,0.002,2050.0,2049.5,0.48282132]
[1773119100634,0.002,2050.0,2049.6,1.21975019]
[1773119100839,0.48391972,2050.0,2049.4,0.001]
[1773119101227,0.48391972,2050.0,2049.4,1.22086645]
[1773119101427,0.48391972,2050.0,2049.4,0.001]
[1773119102634,0.48191972,2049.8,2049.4,0.001]
[1773119103929,0.48391972,2049.8,2049.4,0.001]
[1773119105172,0.002,2050.0,2049.5,0.4502215]
[1773119106551,0.47100031,2050.0,2049.4,0.4512215]
[1773119107559,1.69051635,2050.0,2049.5,0.6]
[1773119107762,0.46900031,2049.9,2049.5,0.6]
[1773119108057,0.46900031,2049.9,2049.4,0.001]
[1773119109955,1.68863149,2049.8,2049.4,0.001]
[1773119110333,0.46900031,2049.8,2049.4,0.001]
[1773119111334,0.46900031,2049.8,2049.1,1.22104782]
[1773119112248,1.68869099,2049.7,2049.1,0.001]
[1773119112446,0.46900031,2049.6,2049.1,0.001]
[1773119113879,0.46900031,2049.6,2048.9,0.001]
[1773119114283,0.46900031,2049.6,2048.9,1.22116381]
[1773119114431,0.46900031,2049.4,2048.9,0.001]
[1773119115044,0.46900031,2049.5,2048.9,0.4512215]
[1773119115581,0.46900031,2049.5,2049.3,0.001]
[1773119116068,0.46900031,2049.5,2048.9,0.4512215]
[1773119116069,0.46900031,2049.5,2049.0,0.001]
[1773119117073,1.21986923,2049.4,2049.0,0.001]
[1773119117293,0.46900031,2049.3,2049.0,0.001]
[1773119120082,0.46900031,2049.3,2048.8,1.22121821]
[1773119121401,1.68869099,2049.7,2049.1,1.33389324]
[1773119121604,1.68869099,2049.7,2048.8,1.67143971]
[1773119121605,0.46900031,2049.6,2048.8,1.67143971]
[1773119121806,0.00657624,2049.0,2048.8,0.001]
[1773119123296,0.47557655,2049.0,2048.8,0.001]
[1773119123981,0.00657624,2049.0,2048.8,0.001]
[1773119125186,0.46900031,2048.9,2048.4,1.22042421]
[1773119126283,0.46900031,2048.9,2048.3,1.22048257]
[1773119127232,0.46900031,2048.8,2048.3,1.22048257]
[1773119127736,0.00657624,2049.0,2048.4,0.4502215]
[1773119127893,0.00657624,2049.0,2048.6,0.4502215]
[1773119128593,0.002,2049.3,2048.9,1.78475001]
[1773119128793,0.002,2049.3,2048.9,0.4502215]
[1773119129393,0.002,2049.3,2048.9,1.67032986]
[1773119131015,0.002,2049.3,2049.0,0.4502215]
[1773119131397,0.002,2049.3,2049.0,1.67028359]
[1773119131954,0.002,2049.3,2048.8,1.67142186]
[1773119132551,0.002,2049.3,2048.8,1.22120036]
[1773119132762,0.002,2049.3,2048.9,0.4502215]
[1773119133767,0.002,2049.3,2049.0,1.70539801]
[1773119134062,0.002,2049.3,2049.1,0.48529065]
[1773119134355,0.002,2049.5,2049.1,0.48529065]
[1773119136366,0.002,2049.5,2049.2,1.21998828]
[1773119136536,0.002,2049.5,2049.2,1.70527893]
[1773119137832,0.47823045,2049.5,2048.9,1.22014467]
[1773119138055,0.47823045,2049.5,2048.9,1.70543532]
[1773119139872,1.22181859,2049.5,2048.8,0.001]
[1773119140054,0.47623045,2049.4,2048.5,1.22136313]
[1773119140366,0.47623045,2049.3,2048.5,1.70665378]
[1773119140950,0.47623045,2049.1,2048.5,1.22136313]
[1773119141136,0.47623045,2049.1,2049.0,0.001]
[1773119141931,0.47823045,2049.3,2049.0,0.001]
[1773119143643,0.002,2049.3,2049.0,0.001]
[1773119147060,0.002,2049.3,2049.1,1.22004782]
[1773119147883,0.002,2049.5,2049.2,0.48529065]
[1773119148659,0.002,2049.8,2049.4,0.48529065]
[1773119148859,0.002,2049.8,2049.7,0.48529065]
[1773119149293,0.002,2049.8,2049.7,1.70498133]
[1773119149664,0.002,2049.8,2049.2,0.48529065]
[1773119150196,0.002,2049.8,2049.3,0.48529065]
[1773119150486,0.002,2049.8,2049.6,0.48529065]
[1773119151278,0.002,2049.8,2049.7,1.21969068]
[1773119151685,0.002,2049.8,2049.7,1.69925447]
[1773119155399,0.002,2050.0,2049.8,0.47956379]
[1773119155895,0.002,2050.0,2049.9,1.21957168]
[1773119157799,0.002,2050.1,2049.9,4.55507762]
[1773119157998,0.48679256,2051.4,2050.2,3.81506973]
[1773119158502,0.48679256,2051.4,2050.3,0.47956379]
[1773119160415,3.33550594,2051.1,2050.0,1.21951219]
[1773119160585,0.48679256,2051.0,2050.0,1.69907598]
[1773119160789,0.48679256,2051.0,2050.1,0.47956379]
[1773119162917,0.48679256,2051.0,2050.3,0.47956379]
[1773119163618,0.48295528,2051.2,2050.3,0.47956379]
[1773119164786,0.48295528,2051.2,2050.6,0.47279838]
[1773119164988,0.48295528,2051.5,2050.7,1.69189429]
[1773119166801,0.48295528,2051.4,2050.7,1.21909591]
[1773119167014,1.70164162,2051.4,2050.6,4.87638367]
[1773119167232,0.48295528,2051.3,2050.6,4.87638367]
[1773119167386,0.48295528,2051.3,2050.6,5.34918205]
[1773119167699,0.48495528,2051.3,2050.6,1.21915536]
[1773119169094,0.48495528,2051.3,2050.4,5.34989477]
[1773119169095,0.48295528,2051.2,2050.4,5.34989477]
[1773119171950,0.48295528,2051.2,2050.5,0.47279838]
[1773119172637,0.002,2051.3,2050.6,0.47279838]
[1773119173143,0.48495528,2051.3,2050.6,0.47279838]
[1773119173531,0.48295528,2051.2,2050.5,0.47279838]
[1773119173845,0.48295528,2051.0,2050.3,0.001]
[1773119175962,0.48295528,2050.8,2050.3,0.001]
[1773119176177,0.48295528,2050.8,2050.0,0.001]
[1773119178089,0.48295528,2050.6,2050.0,0.001]
[1773119180148,0.48295528,2050.4,2050.0,0.001]
[1773119180477,1.70211159,2050.6,2050.2,0.001]
[1773119180678,0.48295528,2050.5,2050.2,0.001]
[1773119181055,1.21912151,2050.7,2050.2,0.001]
[1773119181262,0.48295528,2050.7,2050.2,0.001]
[1773119181659,0.002,2050.8,2050.2,0.47379838]
[1773119182406,0.002,2050.8,2050.4,0.47279838]
[1773119183377,0.48495528,2050.8,2050.2,0.001]
[1773119183690,0.48495528,2050.8,2050.2,1.22038616]
[1773119184533,0.48295528,2050.6,2050.2,0.001]
[1773119185558,0.48295528,2050.6,2050.0,0.001]
[1773119186385,0.48295528,2050.4,2050.0,0.001]
[1773119188695,1.70228903,2050.3,2050.0,0.001]
[1773119188891,0.48295528,2050.2,2050.0,0.001]
[1773119190089,0.48295528,2050.2,2049.8,0.001]
[1773119191079,0.48295528,2050.0,2049.8,0.001]
[1773119193099,0.48295528,2050.0,2049.2,0.001]
[1773119193100,0.48295528,2049.8,2049.2,0.001]
[1773119194196,0.48295528,2049.8,2049.0,0.001]
[1773119194576,0.48295528,2049.8,2049.0,1.22110499]
[1773119194975,0.49400787,2049.6,2049.0,0.001]
[1773119195175,0.49400787,2049.6,2049.5,0.001]
[1773119195393,0.49400787,2049.6,2049.0,0.001]
[1773119195695,1.71366564,2049.8,2049.0,0.46051512]
[1773119195862,0.49400787,2049.8,2049.0,0.46051512]
[1773119196066,1.21957465,2049.9,2049.0,0.46051512]
[1773119196266,1.71358252,2049.9,2049.0,0.46051512]
[1773119196488,0.49400787,2049.9,2049.0,0.46051512]
[1773119197063,0.49400787,2049.9,2049.2,0.45951512]
[1773119197266,0.49400787,2050.1,2049.2,0.45951512]
[1773119201877,1.71352006,2050.0,2049.3,1.67944387]
[1773119202794,0.49400787,2049.9,2049.3,0.45951512]
[1773119202999,0.49400787,2049.9,2049.1,1.67953355]
[1773119203171,0.49400787,2049.9,2049.0,1.22106576]
[1773119203372,0.49400787,2049.9,2049.0,0.001]
[1773119203373,0.49400787,2049.7,2049.0,0.001]
[1773119203768,1.21975019,2049.6,2049.0,0.001]
[1773119203974,1.71375806,2049.6,2049.0,0.001]
[1773119204194,0.49400787,2049.5,2049.0,0.001]
[1773119206099,1.21986923,2049.4,2049.0,0.001]
[1773119206406,0.49400787,2049.3,2049.0,0.001]
[1773119207312,0.49400787,2049.3,2049.2,0.001]
[1773119207521,0.49400787,2049.3,2048.8,0.001]
[1773119207717,0.49400787,2049.1,2048.5,1.22140216]
[1773119208849,0.49400787,2048.9,2048.5,0.001]
[1773119209515,0.49400787,2048.7,2048.0,1.2216882]
[1773119209722,1.429,2048.8,2048.1,0.49668016]
[1773119210631,1.88171865,2048.8,2048.1,0.49668016]
[1773119210840,3.10200056,2048.8,2048.2,1.22058392]
[1773119212067,3.10194616,2048.8,2048.2,1.22058392]
[1773119212666,3.10194616,2048.8,2048.1,1.71728319]
[1773119213065,0.45271865,2048.7,2048.1,1.22060303]
[1773119213266,0.45271865,2048.7,2048.0,0.001]
[1773119213569,0.45271865,2048.7,2048.0,1.22167951]
[1773119215273,0.45271865,2048.5,2048.0,1.22167951]
[1773119216573,1.2203456,2048.6,2048.0,1.71835967]
[1773119217169,1.429,2048.8,2048.1,0.49668016]
[1773119218672,1.67265511,2049.3,2048.4,0.49668016]
[1773119219047,0.45271865,2049.2,2048.4,0.49668016]